bitfinex/quotes_SOLUSD_20251103
["timestamp","ask_amount","ask_price","bid_price","bid_amount"]
[1762207875799,4.04190318,165.84,165.77,0.14216157]
[1762207876000,0.7,165.84,165.78,0.72]
[1762207876206,0.7,165.83,165.77,0.14216157]
[1762207876398,0.7,165.83,165.77,6.17450941]
[1762207876737,0.7,165.83,165.77,6.89450941]
[1762207877019,0.7,165.83,165.77,21.97564592]
[1762207877703,0.7,165.85,165.78,0.72]
[1762207879921,0.7,165.85,165.78,6.75203296]
[1762207880721,0.7,165.85,165.78,6.03203296]
[1762207881020,0.7,165.85,165.8,6.03136308]
[1762207881622,0.7,165.91,165.83,20.592]
[1762207881816,0.7,165.9,165.84,0.72]
[1762207882000,6.53791122,165.9,165.83,20.592]
[1762207882199,6.53791122,165.9,165.82,0.72]
[1762207882200,5.83791122,165.88,165.82,0.72]
[1762207882411,0.7,165.89,165.82,0.72]
[1762207882622,0.7,165.89,165.83,20.592]
[1762207883107,6.72829794,165.89,165.83,26.62199623]
[1762207883423,12.56620916,165.89,165.82,0.72]
[1762207883617,0.7,165.88,165.82,0.72]
[1762207884302,5.83791122,165.87,165.79,0.72]
[1762207884515,5.83791122,165.86,165.79,6.75172633]
[1762207884705,0.7,165.87,165.79,6.75172633]
[1762207884910,6.53791122,165.87,165.79,6.75172633]
[1762207885119,12.56692979,165.87,165.81,6.03099933]
[1762207885719,15.07022725,165.89,165.82,0.72]
[1762207885720,0.7,165.89,165.82,0.72]
[1762207885923,0.7,165.88,165.82,0.72]
[1762207887135,0.7,165.88,165.83,6.03027196]
[1762207887518,0.7,165.88,165.83,21.82595187]
[1762207889741,6.0274567,165.91,165.84,0.66]
[1762207889920,6.7474567,165.91,165.84,0.66]
[1762207890116,6.7474567,165.91,165.82,0.14216157]
[1762207890117,4.50688253,165.9,165.82,0.14216157]
[1762207890320,3.78688253,165.83,165.77,6.03212636]
[1762207890615,20.592,165.88,165.76,9.93098926]
[1762207890616,9.78882769,165.86,165.76,9.93098926]
[1762207890820,3.78688253,165.8,165.74,6.03354651]
[1762207891324,4.50688253,165.79,165.74,6.69354651]
[1762207891634,0.72,165.79,165.74,6.69354651]
[1762207891821,0.72,165.79,165.74,6.03354651]
[1762207892144,0.72,165.79,165.75,0.66]
[1762207892446,4.50688253,165.79,165.74,6.03354651]
[1762207892623,10.53869367,165.79,165.73,0.76]
[1762207892818,3.78688253,165.78,165.73,0.76]
[1762207893324,6.75181114,165.79,165.73,0.76]
[1762207893325,3.78688253,165.76,165.73,0.1]
[1762207893534,4.44688253,165.77,165.73,6.13387192]
[1762207893748,0.66,165.77,165.73,6.13387192]
[1762207894214,6.69249139,165.77,165.73,0.1]
[1762207894417,6.69249139,165.77,165.7,0.1]
[1762207894418,30.38082769,165.74,165.7,0.1]
[1762207894837,0.66,165.73,165.7,0.1]
[1762207895741,4.44688253,165.73,165.7,0.1]
[1762207896042,6.69410028,165.73,165.7,0.1]
[1762207896218,4.44688253,165.72,165.7,0.1]
[1762207896421,0.66,165.72,165.7,0.1]
[1762207897328,9.82098281,165.73,165.7,0.1]
[1762207897329,9.82015809,165.75,165.7,0.1]
[1762207897541,0.66,165.75,165.7,6.13491935]
[1762207897928,6.69321483,165.75,165.7,6.13491935]
[1762207898142,6.03321483,165.75,165.7,6.13491935]
[1762207898342,0.66,165.74,165.7,0.1]
[1762207898649,0.66,165.74,165.7,6.13497542]
[1762207899525,0.66,165.74,165.7,6.81497542]
[1762207899725,6.69254558,165.77,165.71,0.68]
[1762207899944,10.47942811,165.77,165.71,0.68]
[1762207900341,10.47942811,165.77,165.72,6.03427468]
[1762207901152,0.66,165.76,165.72,6.03427468]
[1762207901354,4.02137862,165.78,165.73,0.68]
[1762207901649,0.66,165.78,165.73,0.68]
[1762207901953,4.02137862,165.79,165.73,0.68]
[1762207902253,10.47830059,165.8,165.74,6.03354651]
[1762207902439,0.66,165.79,165.74,6.03354651]
[1762207902949,0.66,165.79,165.74,6.71354651]
[1762207903829,4.44688253,165.79,165.74,6.71354651]
[1762207904640,4.44688253,165.78,165.73,6.03384384]
[1762207904843,4.44688253,165.78,165.74,0.68]
[1762207905036,3.78688253,165.78,165.74,0.68]
[1762207905346,10.4783165,165.8,165.74,0.68]
[1762207905542,10.4783165,165.8,165.74,6.71324627]
[1762207905728,3.78688253,165.79,165.74,6.71324627]
[1762207905926,3.81456732,165.84,165.75,0.68]
[1762207906126,3.78688253,165.82,165.75,0.68]
[1762207906647,4.44688253,165.82,165.75,0.68]
[1762207907351,0.66,165.82,165.76,6.03281853]
[1762207907553,0.66,165.82,165.76,6.71281853]
[1762207907926,6.69072832,165.82,165.76,6.71281853]
[1762207908146,9.81761085,165.82,165.77,0.68]
[1762207908563,3.78688253,165.8,165.73,15.76470801]
[1762207908740,0.66,165.81,165.73,0.68]
[1762207908741,3.78688253,165.77,165.73,0.68]
[1762207908931,3.78688253,165.76,165.73,0.68]
[1762207909130,3.78688253,165.78,165.73,6.71384433]
[1762207909355,24.37888253,165.78,165.73,6.71384433]
[1762207909642,24.37888253,165.78,165.74,0.68]
[1762207909848,0.66,165.79,165.74,0.68]
[1762207910227,3.78688253,165.8,165.74,0.68]
[1762207910436,20.592,165.82,165.74,0.68]
[1762207910437,25.03888253,165.82,165.74,0.68]
[1762207910649,4.44688253,165.81,165.74,0.68]
[1762207911238,10.47813087,165.81,165.75,6.0331825]
[1762207912358,3.78688253,165.79,165.75,6.0331825]
[1762207912855,3.78688253,165.79,165.75,6.7131825]
[1762207913355,3.78688253,165.78,165.73,0.68]
[1762207913653,3.78688253,165.78,165.75,0.68]
[1762207914854,3.78688253,165.78,165.75,6.71317521]
[1762207915240,3.78688253,165.78,165.75,0.68]
[1762207915444,9.8189884,165.78,165.74,6.03346012]
[1762207915647,3.78688253,165.76,165.73,6.03369552]
[1762207915863,4.44688253,165.77,165.73,6.71369552]
[1762207916158,24.37888253,165.74,165.7,0.1]
[1762207916450,3.78688253,165.72,165.7,0.1]
[1762207916655,3.78688253,165.72,165.7,0.78]
[1762207917629,26.62566711,165.74,165.7,0.78]
[1762207917630,3.78688253,165.73,165.7,0.78]
[1762207919238,26.62566711,165.74,165.7,0.78]
[1762207919441,3.78688253,165.73,165.7,0.78]
[1762207920336,3.78688253,165.73,165.7,0.1]
[1762207920538,3.78688253,165.71,165.7,0.1]
[1762207920962,4.44688253,165.71,165.7,0.1]
[1762207921950,10.48152135,165.71,165.7,0.1]
[1762207922141,14.52285684,165.71,165.7,0.1]
[1762207922439,10.48152135,165.71,165.7,0.1]
[1762207922642,14.52285684,165.71,165.7,0.1]
[1762207922857,10.48152135,165.71,165.7,0.1]
[1762207923056,14.52285684,165.71,165.7,0.1]
[1762207923836,30.41255129,165.74,165.7,0.82]
[1762207924041,4.69842953,165.73,165.7,0.1]
[1762207924838,8.48531206,165.73,165.7,0.1]
[1762207925156,0.66,165.72,165.7,0.1]
[1762207925554,3.78688253,165.71,165.7,0.1]
[1762207926060,4.44688253,165.71,165.7,0.1]
[1762207927462,10.48152135,165.71,165.7,0.1]
[1762207927860,9.93098926,165.7,165.64,0.1]
[1762207928064,3.78688253,165.65,165.64,0.1]
[1762207928262,7.82531206,165.65,165.64,0.1]
[1762207928456,4.44688253,165.65,165.64,0.1]
[1762207928656,8.4856603,165.65,165.64,0.1]
[1762207929463,24.31131262,165.65,165.64,0.1]
[1762207929666,24.63077777,165.65,165.64,0.1]
[1762207930040,4.03877777,165.65,165.64,6.85718908]
[1762207930239,15.08687346,165.71,165.64,0.82]
[1762207930240,4.03877777,165.68,165.64,0.82]
[1762207930543,4.03877777,165.7,165.64,6.13709935]
[1762207930759,3.78688253,165.65,165.64,0.1]
[1762207930961,3.78688253,165.67,165.64,0.1]
[1762207931269,3.78688253,165.66,165.64,0.1]
[1762207931474,4.44688253,165.65,165.64,0.1]
[1762207931856,3.78688253,165.65,165.64,0.1]
[1762207932478,4.44688253,165.67,165.64,0.1]
[1762207932774,25.03888253,165.67,165.64,0.1]
[1762207932946,3.78688253,165.66,165.64,0.1]
[1762207933158,4.44688253,165.67,165.64,0.1]
[1762207933462,10.48299738,165.67,165.64,0.1]
[1762207933651,9.82299738,165.67,165.64,0.1]
[1762207934273,3.78688253,165.67,165.64,0.1]
[1762207934476,20.592,165.68,165.64,6.1371464]
[1762207934772,3.78688253,165.65,165.64,0.1]
[1762207934949,4.44688253,165.65,165.64,0.1]
[1762207935351,4.04156249,165.66,165.64,0.1]
[1762207935549,3.78688253,165.65,165.64,0.1]
[1762207936681,7.82844502,165.65,165.64,0.1]
[1762207936849,20.592,165.65,165.64,0.1]
[1762207937049,24.63356249,165.65,165.64,0.1]
[1762207938060,15.08934244,165.68,165.64,0.82]
[1762207938061,3.78688253,165.68,165.64,0.82]
[1762207938371,7.82910119,165.67,165.64,0.1]
[1762207938672,4.44688253,165.67,165.64,0.1]
[1762207939352,3.78688253,165.67,165.64,0.1]
[1762207939548,3.78688253,165.65,165.64,0.1]
[1762207939755,7.82846355,165.65,165.64,0.1]
[1762207939961,8.48846355,165.65,165.64,0.1]
[1762207941063,4.04158102,165.65,165.64,0.82]
[1762207941260,3.78688253,165.67,165.64,0.1]
[1762207941566,3.78688253,165.65,165.64,0.1]
[1762207941953,4.44688253,165.65,165.64,0.1]
[1762207942156,25.03888253,165.65,165.64,0.1]
[1762207942361,29.07929769,165.65,165.64,0.1]
[1762207943364,35.11612232,165.65,165.64,0.1]
[1762207943766,44.90495001,165.65,165.64,0.1]
[1762207945181,34.45612232,165.65,165.64,0.1]
[1762207945358,35.11612232,165.65,165.64,0.1]
[1762207946571,31.07570716,165.65,165.64,0.1]
[1762207947774,20.592,165.65,165.64,0.1]
[1762207947961,26.62882463,165.65,165.64,0.1]
[1762207948483,24.49869857,165.65,165.64,0.1]
[1762207948859,20.592,165.65,165.64,0.76]
[1762207949062,24.49869857,165.65,165.64,0.1]
[1762207950274,30.5355232,165.65,165.64,0.1]
[1762207950970,24.49869857,165.65,165.64,0.1]
[1762207951174,30.5355232,165.65,165.64,0.1]
[1762207952460,24.43112627,165.65,165.64,0.1]
[1762207958768,24.57328784,165.65,165.64,1e-08]
[1762207958971,24.57328784,165.65,165.56,0.1]
[1762207958972,30.38082769,165.61,165.56,0.1]
[1762207959168,24.49869857,165.57,165.56,0.1]
[1762207959365,28.53747395,165.57,165.56,0.1]
[1762207959795,3.90669857,165.59,165.56,0.76]
[1762207960166,4.04978551,165.58,165.56,0.76]
[1762207960691,4.04978551,165.59,165.56,6.79999186]
[1762207961069,3.90669857,165.58,165.56,0.76]
[1762207961266,3.90669857,165.57,165.56,0.76]
[1762207961680,4.04978551,165.57,165.56,0.76]
[1762207962796,13.99622557,165.57,165.56,0.1]
[1762207963188,7.95648408,165.57,165.56,0.1]
[1762207963513,11.0990817,165.65,165.56,21.90037206]
[1762207963794,8.66080462,165.64,165.57,0.66]
[1762207964002,4.05410605,165.63,165.57,0.66]
[1762207964311,4.05410605,165.62,165.57,0.66]
[1762207964517,4.05410605,165.61,165.58,6.03937673]
[1762207964800,4.05410605,165.61,165.57,6.69967794]
[1762207964801,4.05410605,165.6,165.57,6.69967794]
[1762207964978,3.90669857,165.62,165.57,6.69967794]
[1762207965181,4.05620861,165.61,165.58,0.66]
[1762207965383,4.05620861,165.6,165.58,0.66]
[1762207965594,4.05620861,165.59,165.58,0.66]
[1762207965799,4.05620861,165.6,165.58,0.66]
[1762207965991,4.05620861,165.59,165.58,0.66]
[1762207966190,4.05620861,165.6,165.58,0.66]
[1762207966399,3.90669857,165.61,165.58,0.66]
[1762207966578,3.90669857,165.59,165.56,0.1]
[1762207966892,3.90669857,165.57,165.56,0.1]
[1762207967092,17.75281342,165.57,165.56,0.1]
[1762207967298,18.45281342,165.57,165.56,0.1]
[1762207968500,4.05728716,165.57,165.56,0.76]
[1762207968988,10.09702865,165.57,165.56,0.76]
[1762207969185,10.09702865,165.57,165.56,0.1]
[1762207969402,29.55454704,165.57,165.56,0.1]
[1762207969608,29.69670861,165.57,165.56,0.1]
[1762207970093,29.55454704,165.57,165.56,0.1]
[1762207970300,24.49255491,165.57,165.56,0.1]
[1762207970797,7.96398573,165.57,165.56,0.1]
[1762207970994,45.08455491,165.57,165.56,0.1]
[1762207972098,50.14654704,165.57,165.56,0.1]
[1762207972308,45.08455491,165.57,165.56,0.1]
[1762207972710,29.55454704,165.57,165.56,0.1]
[1762207973413,29.69670861,165.57,165.55,16.48558378]
[1762207973613,29.69670861,165.57,165.52,0.1]
[1762207973614,39.04481342,165.56,165.52,0.1]
[1762207973920,39.04481342,165.56,165.42,0.66]
[1762207973921,20.592,165.49,165.42,0.66]
[1762207974109,7.96398573,165.48,165.42,0.66]
[1762207974309,7.96398573,165.48,165.42,6.70512049]
[1762207974503,30.54172491,165.48,165.42,6.70512049]
[1762207974820,35.29697069,165.48,165.42,0.66]
[1762207975015,48.29249695,165.48,165.44,0.66]
[1762207975230,49.13465852,165.48,165.47,1e-08]
[1762207975404,9.78882769,165.47,165.32,15.1216946]
[1762207975609,9.78882769,165.47,165.3,2.42358144]
[1762207975610,3.90669857,165.33,165.3,2.42358144]
[1762207975807,3.90669857,165.31,165.26,0.66]
[1762207976004,3.90669857,165.32,165.26,0.66]
[1762207976305,21.292,165.41,165.26,21.83871204]
[1762207976515,3.90669857,165.39,165.29,20.592]
[1762207976703,3.90669857,165.39,165.3,21.8336237]
[1762207976904,3.90669857,165.39,165.31,0.14216157]
[1762207977214,3.90669857,165.35,165.31,0.66]
[1762207977706,3.90669857,165.34,165.31,0.66]
[1762207978020,3.90669857,165.32,165.27,6.0507049]
[1762207978226,3.90669857,165.32,165.3,0.66]
[1762207979017,3.90669857,165.33,165.3,0.66]
[1762207979207,3.90669857,165.32,165.3,0.66]
[1762207979732,3.90669857,165.33,165.3,0.66]
[1762207980023,3.90669857,165.31,165.23,9.78882769]
[1762207980324,3.90669857,165.34,165.29,0.66]
[1762207980509,3.90669857,165.33,165.29,0.66]
[1762207980700,0.7,165.37,165.29,0.66]
[1762207981031,3.90669857,165.35,165.29,0.66]
[1762207981220,3.90669857,165.35,165.29,6.70982495]
[1762207981424,3.90669857,165.35,165.3,0.66]
[1762207981620,3.90669857,165.36,165.3,0.66]
[1762207981924,3.90669857,165.39,165.31,0.14216157]
[1762207982125,3.90669857,165.38,165.31,0.14216157]
[1762207982326,3.90669857,165.38,165.32,0.66]
[1762207982623,3.90669857,165.38,165.33,6.04850904]
[1762207983005,3.90669857,165.37,165.33,6.70850904]
[1762207983435,3.90669857,165.36,165.33,0.66]
[1762207983602,3.90669857,165.37,165.33,0.66]
[1762207983802,20.592,165.4,165.33,0.66]
[1762207984012,3.90669857,165.39,165.33,0.66]
[1762207984218,20.592,165.4,165.33,0.66]
[1762207984219,3.90669857,165.43,165.34,0.14216157]
[1762207984503,15.10543907,165.51,165.36,9.93098926]
[1762207984800,15.10543907,165.51,165.42,0.14216157]
[1762207984801,4.01457091,165.5,165.42,0.14216157]
[1762207985007,24.49869857,165.5,165.42,0.14216157]
[1762207985208,24.49869857,165.5,165.38,9.78882769]
[1762207985209,3.90669857,165.47,165.43,0.66]
[1762207985410,3.90669857,165.51,165.43,0.66]
[1762207985596,4.69359942,165.53,165.44,9.93098926]
[1762207985802,0.68,165.53,165.46,0.14216157]
[1762207986032,4.69359942,165.56,165.48,9.93098926]
[1762207986221,0.68,165.54,165.48,9.93098926]
[1762207986405,0.68,165.54,165.48,0.14216157]
[1762207986604,0.68,165.54,165.48,0.80216157]
[1762207986926,3.90669857,165.53,165.48,0.66]
[1762207987128,6.72100298,165.54,165.48,0.66]
[1762207987336,4.01359942,165.57,165.48,6.70295423]
[1762207987510,3.90669857,165.55,165.48,21.81052009]
[1762207987708,7.92029799,165.56,165.49,0.80216157]
[1762207987914,3.90669857,165.56,165.49,0.80216157]
[1762207988212,4.01359942,165.59,165.49,0.80216157]
[1762207988418,4.01359942,165.59,165.52,0.14216157]
[1762207988635,3.90669857,165.62,165.54,0.14216157]
[1762207988836,4.01359942,165.64,165.56,0.14216157]
[1762207989038,0.68,165.67,165.58,20.592]
[1762207989039,4.69359942,165.67,165.58,20.592]
[1762207989251,0.68,165.67,165.58,20.592]
[1762207989531,3.90669857,165.64,165.58,21.252]
[1762207989736,3.90669857,165.63,165.58,21.252]
[1762207990109,0.68,165.66,165.59,0.66]
[1762207990311,7.92029799,165.67,165.59,0.66]
[1762207990522,3.90669857,165.66,165.59,0.66]
[1762207990731,3.90669857,165.66,165.6,6.03864734]
[1762207990928,3.90669857,165.65,165.6,6.03864734]
[1762207991132,3.90669857,165.66,165.6,0.66]
[1762207991818,3.90669857,165.61,165.57,0.66]
[1762207992021,3.90669857,165.58,165.57,0.66]
[1762207992210,3.90669857,165.6,165.57,0.66]
[1762207992825,3.90669857,165.59,165.57,0.66]
[1762207993038,3.90669857,165.58,165.57,0.66]
[1762207993211,3.90669857,165.58,165.55,0.66]
[1762207993612,3.90669857,165.57,165.55,0.66]
[1762207993850,3.90669857,165.57,165.56,0.66]
[1762207994009,3.90669857,165.58,165.55,0.66]
[1762207994418,3.90669857,165.57,165.55,0.66]
[1762207994619,14.98003668,165.65,165.55,0.66]
[1762207994620,5.04904742,165.64,165.55,0.66]
[1762207994843,4.0141074,165.64,165.57,0.14216157]
[1762207995039,6.74932284,165.7,165.57,0.14216157]
[1762207995040,4.0141074,165.67,165.59,9.93098926]
[1762207995249,4.0141074,165.69,165.63,0.14216157]
[1762207995426,4.0141074,165.7,165.63,0.14216157]
[1762207995754,3.90669857,165.67,165.64,0.66]
[1762207996050,3.90669857,165.69,165.64,0.66]
[1762207996347,4.0141074,165.69,165.64,0.66]
[1762207996552,3.90669857,165.7,165.64,0.66]
[1762207997350,3.90669857,165.69,165.64,0.66]
[1762207997550,3.90669857,165.68,165.64,0.66]
[1762207997747,3.90669857,165.68,165.62,0.66]
[1762207997748,3.90669857,165.66,165.62,0.66]
[1762207997926,20.592,165.68,165.63,0.66]
[1762207998121,24.49869857,165.68,165.63,0.66]
[1762207998326,3.90669857,165.65,165.61,0.66]
[1762207998642,20.592,165.67,165.61,0.66]
[1762207999148,3.90669857,165.66,165.61,0.66]
[1762207999348,30.53487934,165.67,165.61,6.69806425]
[1762207999765,20.592,165.67,165.62,0.66]
[1762207999968,3.90669857,165.68,165.62,0.66]
[1762208000124,3.90669857,165.66,165.62,0.66]
[1762208000462,3.90669857,165.65,165.62,0.66]
[1762208000950,3.90669857,165.69,165.63,0.14216157]
[1762208001254,7.91670657,165.7,165.63,0.14216157]
[1762208001440,9.94202014,165.7,165.64,6.03718908]
[1762208001636,10.62202014,165.7,165.64,6.03718908]
[1762208002359,10.62202014,165.7,165.64,6.69718908]
[1762208003076,4.010008,165.71,165.65,0.80216157]
[1762208003358,8.59670657,165.72,165.65,0.80216157]
[1762208003660,3.90669857,165.71,165.65,0.80216157]
[1762208003954,6.71439351,165.72,165.65,0.80216157]
[1762208003955,10.62109208,165.72,165.65,0.80216157]
[1762208004333,3.90669857,165.71,165.65,0.80216157]
[1762208004937,3.90669857,165.71,165.66,6.03646021]
[1762208005544,9.94136927,165.71,165.67,0.66]
[1762208005741,3.90669857,165.72,165.67,0.66]
[1762208005933,4.690008,165.74,165.68,0.14216157]
[1762208006350,4.690008,165.74,165.68,0.80216157]
[1762208006555,4.58669857,165.74,165.68,0.66]
[1762208006728,3.90669857,165.73,165.68,0.66]
[1762208007664,6.03393456,165.73,165.68,6.03554341]
[1762208007870,9.94063313,165.73,165.69,0.66]
[1762208008458,10.46079156,165.73,165.69,0.66]
[1762208012181,6.03393456,165.73,165.69,0.66]
[1762208012384,4.426857,165.7,165.65,0.67]
[1762208012559,4.426857,165.67,165.65,0.67]
[1762208012759,6.03393456,165.73,165.65,0.67]
[1762208013067,11.14079156,165.73,165.66,0.14216157]
[1762208013284,0.68,165.73,165.66,20.73416157]
[1762208013466,6.71401724,165.73,165.67,0.66]
[1762208014175,11.14087424,165.73,165.67,0.66]
[1762208014563,4.426857,165.68,165.62,0.66]
[1762208014764,20.592,165.7,165.63,0.66]
[1762208014970,4.426857,165.69,165.63,0.66]
[1762208015581,4.426857,165.68,165.63,0.66]
[1762208015781,4.426857,165.64,165.61,0.66]
[1762208017580,5.106857,165.63,165.57,20.592]
[1762208017780,6.03683663,165.65,165.58,21.79773271]
[1762208017985,4.426857,165.62,165.58,6.69929087]
[1762208018178,4.426857,165.61,165.58,0.66]
[1762208019882,4.426857,165.6,165.58,0.66]
[1762208020276,10.46516252,165.61,165.58,0.66]
[1762208020593,10.46483675,165.62,165.58,0.66]
[1762208022086,6.03797975,165.62,165.58,0.66]
[1762208022284,4.426857,165.61,165.58,0.66]
[1762208022476,4.426857,165.6,165.55,6.04043168]
[1762208022682,4.426857,165.58,165.54,6.04078169]
[1762208022886,4.426857,165.59,165.56,0.66]
[1762208023287,0.68,165.69,165.56,0.66]
[1762208023589,0.68,165.67,165.58,0.14216157]
[1762208023774,4.426857,165.65,165.58,0.14216157]
[1762208023975,4.426857,165.65,165.6,6.03864734]
[1762208024174,5.106857,165.65,165.6,6.69864734]
[1762208024382,0.68,165.64,165.6,6.69864734]
[1762208024788,0.68,165.64,165.6,0.66]
[1762208024996,4.426857,165.64,165.6,0.66]
[1762208025170,0.68,165.64,165.58,6.69936862]
[1762208025498,4.426857,165.63,165.58,0.66]
[1762208026000,4.426857,165.62,165.58,0.66]
[1762208026193,10.46499361,165.62,165.58,0.66]
[1762208026379,8.43974251,165.62,165.58,0.66]
[1762208026692,4.426857,165.6,165.55,15.90318185]
[1762208026898,4.426857,165.59,165.55,6.18259624]
[1762208027090,4.02123119,165.62,165.57,9.93098926]
[1762208027293,26.32104742,165.66,165.57,9.93098926]
[1762208027294,4.426857,165.64,165.57,9.93098926]
[1762208027591,4.02754427,165.63,165.58,0.66]
[1762208027794,4.426857,165.6,165.56,0.66]
[1762208028003,4.0283412,165.59,165.56,0.66]
[1762208028194,4.426857,165.6,165.56,0.66]
[1762208028505,0.68,165.62,165.57,6.03974149]
[1762208028506,4.03644651,165.59,165.57,6.03974149]
[1762208028709,4.03644651,165.58,165.57,6.03974149]
[1762208029297,4.03644651,165.58,165.55,6.04016467]
[1762208029507,4.04481949,165.57,165.55,6.04016467]
[1762208029801,4.426857,165.6,165.56,0.66]
[1762208029972,4.0448213,165.59,165.56,0.66]
[1762208030173,4.0448213,165.58,165.56,0.66]
[1762208030419,4.0448213,165.57,165.55,6.1825693]
[1762208030709,4.0448213,165.56,165.55,0.66]
[1762208030878,4.0448213,165.56,165.53,6.70116414]
[1762208031199,4.0448213,165.55,165.54,0.66]
[1762208031377,5.04904742,165.62,165.59,0.14216157]
[1762208031692,5.04904742,165.62,165.56,20.73416157]
[1762208031693,4.05012622,165.61,165.56,20.73416157]
[1762208031890,4.05012622,165.6,165.56,21.39416157]
[1762208032095,4.05012622,165.59,165.57,0.66]
[1762208032274,5.04904742,165.63,165.59,6.03901201]
[1762208032475,4.05327943,165.62,165.59,6.03901201]
[1762208032671,4.05327943,165.61,165.59,6.03901201]
[1762208032982,4.05327943,165.61,165.57,15.09860412]
[1762208032983,4.05334811,165.6,165.56,0.66]
[1762208033288,0.68,165.62,165.57,9.93098926]
[1762208033289,4.05334811,165.59,165.57,9.93098926]
[1762208033600,5.04904742,165.63,165.57,9.93098926]
[1762208033797,4.05553676,165.62,165.58,0.66]
[1762208033981,4.05553676,165.61,165.58,0.66]
[1762208034305,4.05553676,165.6,165.58,0.66]
[1762208034484,5.04904742,165.62,165.59,6.03901201]
[1762208034690,4.05567739,165.61,165.59,6.69901201]
[1762208034994,4.05567739,165.6,165.59,6.03901201]
[1762208035595,4.05567739,165.6,165.59,6.69901201]
[1762208037979,4.05567739,165.6,165.59,0.66]
[1762208039409,4.05567739,165.6,165.59,6.69901201]
[1762208039587,4.05567739,165.6,165.59,6.03901201]
[1762208039788,4.05567739,165.6,165.59,6.69901201]
[1762208040306,4.05567739,165.6,165.47,12.68]
[1762208040307,9.16253439,165.6,165.46,9.42932283]
[1762208040505,20.592,165.57,165.49,0.66]
[1762208040689,4.05567739,165.56,165.5,9.78882769]
[1762208040900,4.426857,165.52,165.5,0.66]
[1762208041199,4.426857,165.51,165.5,0.80216157]
[1762208041404,4.426857,165.51,165.43,30.22423714]
[1762208041588,4.426857,165.53,165.41,21.15954295]
[1762208041791,4.426857,165.52,165.45,9.78882769]
[1762208041995,4.05762114,165.54,165.44,0.14216157]
[1762208042310,4.05762114,165.54,165.43,9.78882769]
[1762208042311,4.426857,165.55,165.46,30.38082769]
[1762208042601,4.426857,165.56,165.46,30.38082769]
[1762208042788,4.426857,165.56,165.5,0.14216157]
[1762208042989,4.05576287,165.55,165.5,0.14216157]
[1762208043306,4.426857,165.55,165.5,0.81216157]
[1762208043493,4.426857,165.55,165.51,6.041931]
[1762208043892,4.426857,165.55,165.51,6.711931]
[1762208045214,4.426857,165.54,165.51,6.041931]
[1762208045378,4.426857,165.54,165.47,20.592]
[1762208045379,4.426857,165.52,165.47,20.592]
[1762208045584,4.426857,165.51,165.47,26.63529217]
[1762208045784,4.426857,165.5,165.47,26.63529217]
[1762208045980,4.426857,165.5,165.47,6.04329217]
[1762208046595,4.426857,165.48,165.44,0.67]
[1762208046910,4.426857,165.5,165.44,6.71445284]
[1762208047099,4.426857,165.49,165.44,21.8256714]
[1762208047300,4.426857,165.49,165.45,0.67]
[1762208047616,4.426857,165.48,165.45,0.67]
[1762208047826,4.426857,165.46,165.41,0.67]
[1762208047996,4.426857,165.42,165.39,0.67]
[1762208048188,4.426857,165.4,165.39,0.67]
[1762208048408,20.592,165.44,165.39,0.67]
[1762208048409,4.426857,165.41,165.39,0.67]
[1762208048602,20.592,165.44,165.39,0.67]
[1762208048803,4.426857,165.44,165.39,0.67]
[1762208049484,4.426857,165.4,165.36,0.67]
[1762208049690,4.426857,165.4,165.34,0.67]
[1762208049691,0.71,165.4,165.34,0.67]
[1762208050022,4.426857,165.39,165.32,20.592]
[1762208050225,0.71,165.42,165.33,20.592]
[1762208050390,26.63666342,165.44,165.32,9.78882769]
[1762208050391,4.426857,165.39,165.32,9.78882769]
[1762208050591,4.426857,165.39,165.33,21.262]